bitfinex/quotes_SOLUSD_20250718
["timestamp","ask_amount","ask_price","bid_price","bid_amount"]
[1752836539742,5.57072029,179.51,179.48,0.7]
[1752836539936,5.57072029,179.51,179.49,0.7]
[1752836540143,13.20606526,179.51,179.48,0.7]
[1752836540668,7.63534497,179.5,179.45,0.03]
[1752836540972,7.63534497,179.49,179.45,0.03]
[1752836541140,7.63534497,179.49,179.45,0.73]
[1752836541344,8.22534497,179.49,179.45,0.73]
[1752836541538,13.2069964,179.48,179.45,0.73]
[1752836541969,5.57165143,179.48,179.45,0.73]
[1752836543747,5.57165143,179.48,179.46,0.67]
[1752836545851,5.57134102,179.49,179.46,0.67]
[1752836546652,13.20668599,179.49,179.45,0.03]
[1752836546850,13.20668599,179.49,179.45,0.7]
[1752836547449,13.20668599,179.49,179.45,0.03]
[1752836547652,13.20668599,179.49,179.46,0.67]
[1752836547865,5.57134102,179.49,179.46,0.67]
[1752836548268,5.57134102,179.49,179.46,0.03]
[1752836548471,5.57134102,179.49,179.46,0.7]
[1752836550477,8.22534497,179.49,179.46,0.03]
[1752836551155,0.59,179.49,179.46,0.03]
[1752836551356,8.22534497,179.49,179.46,0.03]
[1752836552288,5.57165143,179.48,179.46,0.03]
[1752836553073,8.22534497,179.47,179.46,0.03]
[1752836554454,13.79730685,179.47,179.46,0.03]
[1752836555160,6.16196188,179.47,179.46,0.03]
[1752836555375,13.79730685,179.47,179.46,0.03]
[1752836558869,6.16196188,179.47,179.46,0.03]
[1752836559391,13.79730685,179.47,179.46,0.03]
[1752836561578,13.79730685,179.47,179.45,0.03]
[1752836561779,8.22534497,179.46,179.45,0.03]
[1752836562497,13.79761734,179.46,179.45,0.03]
[1752836562996,13.79761734,179.46,179.44,0.03]
[1752836563178,8.22534497,179.45,179.44,0.03]
[1752836563568,8.22534497,179.45,179.44,1e-08]
[1752836563794,32.72494536,179.45,179.44,1e-08]
[1752836563980,39.86574044,179.45,179.44,1e-08]
[1752836564183,26.0,179.42,179.41,1e-08]
[1752836564383,39.20885962,179.42,179.41,1e-08]
[1752836564585,39.79885962,179.42,179.41,1e-08]
[1752836567000,47.51377604,179.42,179.41,1e-08]
[1752836567196,47.51377604,179.42,179.4,0.03]
[1752836567197,47.51377604,179.42,179.4,1e-08]
[1752836567402,15.94026139,179.41,179.4,1e-08]
[1752836567597,23.57560636,179.41,179.39,1e-08]
[1752836567797,60.88537391,179.4,179.39,1e-08]
[1752836567978,42.78468397,179.38,179.37,1e-08]
[1752836568178,50.42002894,179.38,179.37,1e-08]
[1752836568390,58.72494536,179.38,179.37,1e-08]
[1752836568601,58.72494536,179.38,179.35,0.2]
[1752836568810,7.63534497,179.36,179.35,0.2]
[1752836569009,28.83,179.37,179.35,0.2]
[1752836569207,13.80072409,179.36,179.35,0.2]
[1752836569403,21.51564051,179.36,179.35,1e-08]
[1752836570306,38.30032448,179.36,179.35,1e-08]
[1752836571401,30.66497951,179.36,179.35,1e-08]
[1752836571714,38.30032448,179.36,179.35,1e-08]
[1752836572502,16.78468397,179.35,179.32,0.03]
[1752836572703,33.63534497,179.33,179.31,0.2]
[1752836573008,43.59026139,179.32,179.31,1e-08]
[1752836573202,44.18026139,179.32,179.31,1e-08]
[1752836573404,7.63534497,179.32,179.31,1e-08]
[1752836573611,35.87534497,179.32,179.31,1e-08]
[1752836574118,36.46534497,179.32,179.31,1e-08]
[1752836574495,66.54156815,179.32,179.31,1e-08]
[1752836574695,16.78468397,179.31,179.3,1e-08]
[1752836574995,32.72494536,179.31,179.3,1e-08]
[1752836575902,40.36029033,179.31,179.3,1e-08]
[1752836576217,40.36029033,179.31,179.28,0.2]
[1752836576218,26.0,179.28,179.27,0.03]
[1752836576417,61.87534497,179.28,179.27,0.03]
[1752836576616,67.45321199,179.28,179.27,0.03]
[1752836576921,68.04321199,179.28,179.27,0.03]
[1752836577915,67.45321199,179.28,179.27,0.03]
[1752836578616,68.04321199,179.28,179.27,0.03]
[1752836578917,68.06321199,179.28,179.27,0.03]
[1752836579214,68.06321199,179.28,179.27,1e-08]
[1752836579420,84.84789596,179.28,179.27,1e-08]
[1752836579718,92.56281238,179.28,179.27,1e-08]
[1752836580500,67.55278344,179.28,179.27,1e-08]
[1752836580814,67.47321199,179.28,179.27,1e-08]
[1752836583301,59.83786702,179.28,179.27,1e-08]
[1752836583507,67.47321199,179.28,179.27,0.69000001]
[1752836583910,41.47321199,179.28,179.27,0.69000001]
[1752836584437,91.39869104,179.28,179.27,1e-08]
[1752836584610,99.70360746,179.28,179.27,1e-08]
[1752836584801,63.21826249,179.28,179.27,1e-08]
[1752836585004,67.47321199,179.28,179.27,1e-08]
[1752836585234,74.92456263,179.28,179.27,1e-08]
[1752836585436,75.51456263,179.28,179.27,1e-08]
[1752836585625,83.22947905,179.28,179.27,1e-08]
[1752836586006,82.63947905,179.28,179.27,1e-08]
[1752836588245,75.18812841,179.28,179.27,1e-08]
[1752836589330,82.63947905,179.28,179.27,1e-08]
[1752836589532,83.22947905,179.28,179.27,1e-08]
[1752836590512,75.18812841,179.28,179.27,1e-08]
[1752836592256,49.18812841,179.28,179.27,1e-08]
[1752836592428,33.83786702,179.28,179.27,0.69000001]
[1752836592629,41.47321199,179.28,179.27,0.69000001]
[1752836592949,41.53321199,179.28,179.27,0.69000001]
[1752836593138,41.53321199,179.28,179.27,1.69000001]
[1752836593540,41.53321199,179.28,179.27,1.00000001]
[1752836593849,49.57456263,179.28,179.27,1.00000001]
[1752836595543,66.3592466,179.28,179.27,1e-08]
[1752836595743,92.3592466,179.28,179.27,1e-08]
[1752836595937,74.07416302,179.28,179.27,1e-08]
[1752836599057,45.22416302,179.28,179.27,1e-08]
[1752836599258,75.24812841,179.28,179.27,1e-08]
[1752836599447,41.53321199,179.28,179.27,0.69000001]
[1752836599957,33.89786702,179.28,179.27,0.69000001]
[1752836600265,13.27321199,179.28,179.27,0.69000001]
[1752836600636,5.63786702,179.28,179.27,0.69000001]
[1752836600839,13.27321199,179.28,179.27,0.69000001]
[1752836602060,5.63786702,179.28,179.27,0.69000001]
[1752836602847,13.27321199,179.28,179.27,0.69000001]
[1752836603244,5.63786702,179.28,179.27,0.69000001]
[1752836604944,0.06,179.28,179.27,0.69000001]
[1752836605144,7.69534497,179.28,179.27,0.69000001]
[1752836605856,13.27321199,179.28,179.27,0.69000001]
[1752836607668,13.27321199,179.28,179.27,1e-08]
[1752836607870,20.72456263,179.28,179.27,1e-08]
[1752836609167,5.63786702,179.28,179.27,0.67000001]
[1752836609467,0.06,179.28,179.27,16.42994498]
[1752836610001,0.06,179.28,179.27,8.79460001]
[1752836610272,0.06,179.28,179.27,16.42994498]
[1752836613570,0.06,179.28,179.27,8.79460001]
[1752836614771,5.63786702,179.28,179.27,2.17240001]
[1752836616284,5.63786702,179.28,179.27,1.50240001]
[1752836616579,13.27321199,179.28,179.27,1.50240001]
[1752836616776,27.80787954,179.28,179.23,0.7]
[1752836616951,7.63534497,179.25,179.23,0.7]
[1752836617152,7.63534497,179.24,179.23,0.7]
[1752836617351,7.63534497,179.24,179.23,0.03]
[1752836618352,0.59,179.27,179.23,0.03]
[1752836618554,7.63534497,179.24,179.23,0.7]
[1752836618754,31.58035714,179.2,179.14,0.67]
[1752836618953,7.63534497,179.16,179.14,0.67]
[1752836619168,7.63534497,179.17,179.14,0.67]
[1752836619779,31.58035714,179.2,179.14,0.67]
[1752836619954,5.58129151,179.17,179.14,0.67]
[1752836620758,5.58129151,179.17,179.15,7.63534497]
[1752836620977,5.58129151,179.17,179.16,8.30534497]
[1752836621971,21.58595682,179.21,179.16,0.67]
[1752836621972,7.63534497,179.18,179.16,0.67]
[1752836622481,7.63534497,179.17,179.16,0.67]
[1752836622976,7.63534497,179.17,179.13,1.5641]
[1752836623178,7.63534497,179.17,179.14,0.67]
[1752836623565,7.63534497,179.16,179.14,0.67]
[1752836623770,7.63534497,179.15,179.14,0.67]
[1752836623977,5.58191459,179.15,179.13,1.5641]
[1752836624360,13.21725956,179.15,179.13,1.5641]
[1752836624564,13.21725956,179.15,179.14,0.67]
[1752836624759,13.21725956,179.15,179.12,0.67]
[1752836624975,7.63534497,179.13,179.12,0.67]
[1752836625191,7.63534497,179.13,179.09,1.72]
[1752836625192,7.63534497,179.13,179.09,2.39]
[1752836625366,7.63534497,179.11,179.1,0.67]
[1752836625569,7.63534497,179.12,179.1,0.67]
[1752836625772,7.63534497,179.11,179.1,0.17]
[1752836626174,5.58347292,179.1,179.09,1.72]
[1752836626487,13.21881789,179.1,179.09,0.2]
[1752836627781,13.88881789,179.1,179.09,0.2]
[1752836628371,27.84750019,179.1,179.05,0.67]
[1752836628566,19.54215522,179.1,179.06,0.67]
[1752836628782,5.58284948,179.12,179.08,7.63534497]
[1752836628979,5.58284948,179.12,179.09,0.67]
[1752836629386,7.63534497,179.14,179.09,8.30534497]
[1752836629686,13.95449293,179.16,179.1,8.30534497]
[1752836629687,13.21725956,179.15,179.1,8.30534497]
[1752836629992,5.58191459,179.15,179.11,8.30534497]
[1752836630294,13.21725956,179.15,179.12,0.67]
[1752836630481,13.21725956,179.15,179.1,14.14234497]
[1752836630678,13.21725956,179.15,179.13,0.67]
[1752836631272,8.30534497,179.14,179.08,0.67]
[1752836631567,19.53670108,179.15,179.12,7.63534497]
[1752836631568,5.58191459,179.15,179.12,7.63534497]
[1752836631770,5.58191459,179.15,179.13,0.67]
[1752836631982,5.58159902,179.17,179.14,7.63534497]
[1752836632182,5.58066856,179.19,179.15,8.30534497]
[1752836632383,5.58066856,179.19,179.16,0.67]
[1752836632590,5.58066856,179.19,179.17,0.67]
[1752836632785,13.21601353,179.19,179.17,0.67]
[1752836633495,13.21601353,179.19,179.15,0.67]
[1752836633679,13.21601353,179.19,179.14,7.63534497]
[1752836633680,13.21601353,179.19,179.16,0.72]
[1752836633868,0.06,179.17,179.16,0.72]
[1752836638097,0.06,179.17,179.13,6.3027]
[1752836638284,0.71,179.17,179.13,13.93804497]
[1752836638594,0.06,179.17,179.14,0.72]
[1752836639093,0.06,179.17,179.15,0.72]
[1752836639677,5.64129151,179.17,179.15,0.72]
[1752836640015,0.06,179.17,179.15,8.35534497]
[1752836640196,0.06,179.17,179.15,7.63534497]
[1752836640379,0.06,179.17,179.16,0.72]
[1752836641973,0.06,179.17,179.16,8.91350527]
[1752836642377,0.06,179.17,179.16,37.27350527]
[1752836642593,0.06,179.17,179.16,42.8551083]
[1752836642898,0.06,179.17,179.16,37.27350527]
[1752836643492,0.06,179.17,179.16,42.8551083]
[1752836643689,0.06,179.17,179.16,37.27350527]
[1752836644623,0.06,179.17,179.16,42.8551083]
[1752836644995,0.06,179.17,179.16,37.27350527]
[1752836645299,0.06,179.17,179.16,42.8551083]
[1752836645600,0.06,179.17,179.16,93.03979227]
[1752836645794,0.06,179.17,179.16,94.64359227]
[1752836648904,0.06,179.17,179.16,2.8819603]
[1752836649214,0.06,179.17,179.16,70.4389083]
[1752836649789,0.06,179.17,179.16,64.85730527]
[1752836650491,0.06,179.17,179.14,5.58212326]
[1752836650492,0.06,179.17,179.14,8.35534497]
[1752836650699,0.06,179.17,179.15,29.06]
[1752836651003,0.06,179.17,179.15,36.69534497]
[1752836651688,0.06,179.17,179.15,29.06]
[1752836651890,0.06,179.17,179.15,36.69534497]
[1752836654125,0.06,179.17,179.16,8.35534497]
[1752836655051,0.06,179.17,179.16,0.72]
[1752836656121,0.06,179.17,179.16,8.35534497]
[1752836656820,0.06,179.17,179.16,0.72]
[1752836661307,0.06,179.17,179.16,8.35534497]
[1752836662900,0.06,179.17,179.15,28.34]
[1752836663406,0.71,179.17,179.12,28.3223]
[1752836663723,8.34534497,179.17,179.13,36.68534497]
[1752836664222,8.34534497,179.17,179.13,29.05]
[1752836664412,5.58160303,179.16,179.13,36.68534497]
[1752836665242,7.63534497,179.14,179.11,28.34]
[1752836665423,8.32534497,179.14,179.11,28.34]
[1752836665603,8.32534497,179.13,179.09,0.03]
[1752836665806,7.63534497,179.11,179.09,0.03]
[1752836666210,8.32534497,179.11,179.09,0.03]
[1752836666416,5.58347292,179.1,179.09,0.03]
[1752836666612,6.27325261,179.11,179.09,0.03]
[1752836666814,13.90859758,179.11,179.09,0.03]
[1752836667133,13.21859758,179.11,179.09,0.03]
[1752836667329,13.90859758,179.11,179.09,0.03]
[1752836668632,6.27325261,179.11,179.09,0.03]
[1752836668836,7.63534497,179.14,179.09,8.37534497]
[1752836669012,7.63534497,179.14,179.1,0.71]
[1752836669210,7.63534497,179.13,179.1,0.71]
[1752836669420,8.32534497,179.13,179.09,36.00534497]
[1752836669620,8.32534497,179.13,179.09,28.37]
[1752836669808,7.63534497,179.11,179.09,28.37]
[1752836670030,0.69,179.1,179.09,0.03]
[1752836670726,6.27347292,179.1,179.09,0.03]
[1752836671107,13.90881789,179.1,179.09,0.03]
[1752836672125,5.58347292,179.1,179.09,0.03]
[1752836674340,13.90881789,179.1,179.09,0.03]
[1752836675044,5.58347292,179.1,179.09,0.03]
[1752836677234,13.21757116,179.14,179.09,8.37534497]
[1752836677530,13.21757116,179.14,179.1,0.71]
[1752836677738,13.90757116,179.14,179.1,0.71]
[1752836678430,0.69,179.13,179.09,7.66534497]
[1752836678632,8.32534497,179.13,179.09,0.03]
[1752836678929,7.63534497,179.1,179.09,0.03]
[1752836679728,8.32534497,179.1,179.09,0.03]
[1752836680341,13.90881789,179.1,179.09,0.03]
[1752836681222,6.27347292,179.1,179.09,0.03]
[1752836681432,13.90881789,179.1,179.09,0.03]
[1752836682728,27.86750019,179.1,179.05,0.03]
[1752836682928,7.63534497,179.06,179.05,0.03]
[1752836683343,8.32534497,179.06,179.05,0.03]
[1752836684430,13.91006517,179.06,179.05,0.03]
[1752836685064,13.22006517,179.06,179.05,0.03]
[1752836685433,0.69,179.08,179.05,8.37534497]
[1752836685434,5.58439584,179.08,179.05,8.37534497]
[1752836685642,5.58439584,179.08,179.06,0.71]
[1752836685948,5.58439584,179.08,179.05,0.03]
[1752836686347,5.58439584,179.08,179.05,0.74]
[1752836686662,13.21974081,179.08,179.05,0.03]
[1752836687579,5.58439584,179.08,179.06,0.71]
[1752836687734,5.58439584,179.08,179.05,7.66534497]
[1752836688058,5.58439584,179.08,179.07,0.71]
[1752836688756,5.58439584,179.08,179.05,0.74]
[1752836689158,5.58439584,179.08,179.06,0.71]
[1752836690057,5.58439584,179.08,179.05,0.03]
[1752836690058,13.21917838,179.09,179.05,0.03]
[1752836690262,7.63534497,179.11,179.07,8.34534497]
[1752836690471,7.63534497,179.11,179.08,0.71]
[1752836690673,7.63534497,179.12,179.08,0.71]
[1752836691042,8.32534497,179.12,179.08,0.71]
[1752836692073,13.90819445,179.12,179.08,0.71]
[1752836695658,13.21819445,179.12,179.09,0.7]
[1752836695853,5.58284948,179.12,179.1,0.7]
[1752836696062,5.58284948,179.12,179.09,7.63534497]
[1752836696265,5.58284948,179.12,179.09,0.7]
[1752836696461,5.58284948,179.12,179.08,7.63534497]
[1752836696652,6.29284948,179.12,179.08,8.33534497]
[1752836698165,5.58284948,179.12,179.08,7.63534497]
[1752836698370,0.71,179.11,179.05,33.93495419]
[1752836698568,0.71,179.11,179.07,7.63534497]
[1752836698761,0.71,179.11,179.07,8.33534497]
[1752836698961,8.34534497,179.13,179.08,8.33534497]
[1752836699657,6.29284948,179.12,179.08,8.33534497]
[1752836701053,5.58347292,179.1,179.07,7.63534497]
[1752836701260,5.58347292,179.1,179.07,8.33534497]
[1752836701565,0.71,179.09,179.05,0.03]
[1752836701759,0.71,179.09,179.05,8.36534497]
[1752836701954,5.58347292,179.1,179.06,8.33534497]
[1752836702157,6.29347292,179.1,179.06,8.33534497]
[1752836702369,8.34534497,179.09,179.05,7.66534497]
[1752836702752,8.34534497,179.09,179.05,8.36534497]
[1752836702951,0.71,179.09,179.05,8.36534497]
[1752836703367,5.58409649,179.08,179.05,8.36534497]
[1752836703874,42.78468397,179.15,179.07,7.63534497]
[1752836703875,0.71,179.12,179.07,7.63534497]
[1752836704070,21.59203232,179.13,179.08,8.33534497]
[1752836704271,5.58284948,179.12,179.09,0.7]
[1752836704453,5.58284948,179.12,179.09,7.63534497]
[1752836704652,5.58284948,179.12,179.1,8.33534497]
[1752836705252,5.58222619,179.14,179.1,8.33534497]
[1752836706148,0.71,179.13,179.09,7.63534497]
[1752836706571,0.71,179.12,179.09,7.63534497]
[1752836706961,13.21757116,179.14,179.09,7.63534497]
[1752836707260,5.58284948,179.12,179.09,8.33534497]
[1752836707668,5.58284948,179.12,179.1,0.7]
[1752836708974,5.58284948,179.12,179.1,8.33534497]
[1752836709354,5.58253782,179.13,179.1,8.33534497]
[1752836709555,5.58253782,179.13,179.11,0.7]
[1752836709854,5.58253782,179.13,179.12,0.7]
[1752836710250,5.58253782,179.13,179.11,7.63534497]
[1752836710658,5.58253782,179.13,179.11,8.33534497]
[1752836710854,5.58253782,179.13,179.11,0.7]
[1752836711055,22.35981174,179.16,179.12,0.7]
[1752836711280,22.35981174,179.16,179.07,34.44273587]
[1752836711281,0.06,179.16,179.13,8.33534497]
[1752836711460,5.64169279,179.16,179.14,8.33534497]
[1752836712099,8.34534497,179.15,179.1,35.86804497]
[1752836712390,0.71,179.14,179.1,35.86804497]
[1752836712764,8.34534497,179.14,179.1,2.2327]
[1752836713205,8.34534497,179.14,179.09,7.63534497]
[1752836713492,5.58284948,179.12,179.09,8.33534497]
[1752836714458,5.58284948,179.12,179.09,0.7]
[1752836714657,8.34534497,179.11,179.08,28.3]
[1752836714890,5.58284948,179.12,179.08,29.0]
[1752836714891,13.21819445,179.12,179.08,29.0]
[1752836715192,13.92819445,179.12,179.08,29.0]
[1752836716502,6.29284948,179.12,179.08,29.0]
[1752836716993,13.21819445,179.12,179.09,0.7]
[1752836717604,5.58222619,179.14,179.1,8.33534497]
[1752836717759,5.58222619,179.14,179.11,8.33534497]
[1752836717960,5.58222619,179.14,179.11,0.7]
[1752836719321,13.21757116,179.14,179.11,0.7]
[1752836719616,13.21757116,179.14,179.1,0.04407095]
[1752836719617,13.92757116,179.14,179.1,0.04407095]
[1752836720422,6.29222619,179.14,179.1,0.04407095]
[1752836720722,13.92757116,179.14,179.1,0.04407095]
[1752836721912,13.92757116,179.14,179.1,0.74407095]
[1752836722117,7.63534497,179.13,179.1,0.74407095]
[1752836722654,13.21816429,179.13,179.1,0.74407095]
[1752836724421,5.58281932,179.13,179.11,0.68]
[1752836724599,5.58231533,179.14,179.11,0.68]
[1752836724994,5.58231533,179.14,179.12,0.68]
[1752836725995,5.64160303,179.16,179.12,0.68]
[1752836726308,7.63534497,179.15,179.13,0.68]
[1752836727425,13.21755646,179.15,179.13,0.68]
[1752836727715,13.21755646,179.15,179.11,0.68]
[1752836727891,13.21755646,179.15,179.12,0.68]
[1752836729291,0.06,179.16,179.13,0.68]
[1752836729921,5.64163831,179.16,179.13,0.68]
[1752836730096,13.27698328,179.16,179.14,0.68]
[1752836730506,13.27698328,179.16,179.12,28.98]
[1752836730799,13.27698328,179.16,179.13,0.68]
[1752836731520,5.64163831,179.16,179.14,0.68]
[1752836731717,0.06,179.16,179.14,0.68]
[1752836732327,5.64167954,179.16,179.14,0.68]
[1752836734022,7.69534497,179.16,179.13,0.68]
[1752836734431,7.63534497,179.14,179.12,28.3]
[1752836734606,8.32534497,179.15,179.12,28.3]
[1752836734801,8.32534497,179.15,179.12,28.98]
[1752836735004,7.63534497,179.15,179.12,28.98]
[1752836736016,13.21747808,179.15,179.12,28.98]
[1752836736724,5.58213311,179.15,179.12,28.98]
[1752836737099,13.90747808,179.15,179.12,28.98]
[1752836738123,13.21747808,179.15,179.12,28.3]
[1752836738329,0.69,179.14,179.12,28.3]
[1752836738522,13.21747808,179.15,179.12,28.3]
[1752836738734,13.90747808,179.15,179.12,28.3]
[1752836740236,7.63534497,179.13,179.1,0.72407095]
[1752836740529,7.63534497,179.11,179.1,0.04407095]
[1752836741531,7.63534497,179.12,179.1,0.72407095]
[1752836741731,8.35079508,179.15,179.11,0.68]
[1752836741907,7.63534497,179.14,179.12,0.68]
[1752836742320,7.63534497,179.13,179.1,0.72407095]
[1752836743343,5.58191459,179.15,179.11,0.68]
[1752836743513,13.21725956,179.15,179.12,0.68]
[1752836743714,0.06,179.16,179.13,0.68]
[1752836744014,0.06,179.16,179.13,8.87359875]
[1752836744230,0.06,179.16,179.14,0.68]
[1752836747010,7.63534497,179.15,179.12,28.98]
[1752836747224,0.75,179.16,179.12,28.98]
[1752836747225,7.63534497,179.14,179.12,28.98]
[1752836747428,7.63534497,179.15,179.12,28.98]
[1752836748027,5.58222619,179.14,179.12,28.98]
[1752836748224,13.21729117,179.15,179.13,0.68]
[1752836748428,5.5819462,179.15,179.13,0.68]
[1752836749311,5.5819462,179.15,179.12,28.3]
[1752836749725,13.21729117,179.15,179.12,28.98]
[1752836750244,13.90729117,179.15,179.12,28.98]
[1752836750815,7.63534497,179.13,179.1,0.04407095]
[1752836751023,7.63534497,179.12,179.1,0.04407095]
[1752836751616,7.63534497,179.14,179.1,0.04407095]
[1752836752025,7.63534497,179.13,179.1,0.04407095]
[1752836752622,13.21796222,179.13,179.1,0.04407095]
[1752836753027,7.63534497,179.12,179.1,0.04407095]
[1752836754619,13.21842755,179.12,179.1,0.04407095]
[1752836754833,5.58308258,179.12,179.1,0.04407095]
[1752836755937,5.58308258,179.12,179.1,0.74407095]
[1752836757534,5.58253782,179.13,179.1,0.74407095]
[1752836757732,12.21788279,179.13,179.1,0.74407095]
[1752836758429,5.58191459,179.15,179.11,0.7]
[1752836758636,13.21725956,179.15,179.11,0.7]
[1752836758838,5.58191459,179.15,179.11,8.33534497]
[1752836759038,13.21725956,179.15,179.12,0.7]
[1752836759241,13.93725956,179.15,179.12,0.7]
[1752836759545,13.93725956,179.15,179.1,8.37941592]
[1752836759744,13.93725956,179.15,179.11,0.7]
[1752836762141,6.30191459,179.15,179.11,8.33534497]
[1752836762341,6.30191459,179.15,179.12,0.7]
[1752836762551,5.58191459,179.15,179.12,0.7]
[1752836763842,0.06,179.16,179.12,7.63534497]
[1752836764022,0.06,179.17,179.15,7.63534497]
[1752836764223,0.06,179.17,179.15,35.93534497]
[1752836764534,0.06,179.17,179.16,8.33534497]
[1752836764734,0.06,179.17,179.15,36.49353642]
[1752836764933,0.06,179.17,179.15,37.19353642]
[1752836765232,0.06,179.16,179.15,36.49353642]
[1752836765648,0.06,179.16,179.15,37.19353642]
[1752836766551,0.06,179.16,179.15,36.49353642]
[1752836766956,0.06,179.16,179.13,28.3]
[1752836766957,0.78,179.16,179.13,28.3]
[1752836767682,0.78,179.16,179.13,29.0]
[1752836767852,6.36176016,179.16,179.13,29.0]
[1752836768223,5.64176016,179.16,179.13,29.0]
[1752836768928,5.64176016,179.16,179.14,0.7]
[1752836769128,0.06,179.16,179.15,0.7]
[1752836769749,5.64164387,179.16,179.14,7.63534497]
[1752836769954,0.06,179.16,179.14,7.63534497]
[1752836770526,0.06,179.16,179.11,6.14139874]
[1752836770527,0.72,179.15,179.11,0.55831611]
[1752836770754,7.56823361,179.14,179.1,0.04407095]
[1752836771057,0.72,179.13,179.1,28.32407095]
[1752836771256,0.06,179.16,179.1,36.65941592]
[1752836771469,8.35534497,179.15,179.1,36.65941592]
[1752836771634,7.63534497,179.15,179.1,29.02407095]
[1752836771829,0.72,179.14,179.1,29.02407095]
[1752836772557,5.58253782,179.13,179.1,29.02407095]
[1752836772773,5.58253782,179.13,179.1,36.65941592]
[1752836773444,5.58191459,179.15,179.11,8.33534497]
[1752836773649,5.58191459,179.15,179.12,0.7]
[1752836775561,0.06,179.16,179.14,7.63534497]
[1752836775857,0.06,179.16,179.15,8.33534497]
[1752836781557,0.06,179.17,179.15,8.33534497]
[1752836781759,0.06,179.17,179.16,8.33534497]
[1752836782564,0.06,179.17,179.16,7.63534497]
[1752836782958,0.06,179.17,179.15,28.28]
[1752836783274,0.78,179.17,179.15,35.91534497]
[1752836784184,0.06,179.17,179.15,35.91534497]
[1752836784752,0.06,179.17,179.15,36.59534497]
[1752836785747,5.64098002,179.18,179.15,36.59534497]
[1752836786455,6.35098002,179.18,179.15,7.63534497]
[1752836787168,6.35098002,179.18,179.14,7.63534497]
[1752836787473,0.71,179.17,179.14,35.91534497]
[1752836787857,0.71,179.17,179.14,36.59534497]
[1752836788066,5.64098002,179.18,179.14,36.59534497]
[1752836788459,5.64098002,179.18,179.15,8.31534497]
[1752836789376,5.64098002,179.18,179.16,7.63534497]
[1752836789572,0.06,179.18,179.16,8.31534497]
[1752836789760,5.64071169,179.19,179.16,8.31534497]
[1752836790274,5.64071169,179.19,179.17,8.31534497]
[1752836790579,0.06,179.19,179.17,7.63534497]
[1752836790958,0.06,179.19,179.16,7.63534497]
[1752836791158,0.06,179.19,179.18,7.63534497]
[1752836791365,0.06,179.19,179.18,8.31534497]
[1752836792755,0.06,179.19,179.18,8.87344297]
[1752836793054,0.06,179.19,179.18,8.31534497]
[1752836795266,0.77,179.19,179.17,0.04407095]
[1752836795472,0.06,179.19,179.17,0.04407095]
[1752836795787,0.77,179.19,179.17,0.04407095]
[1752836796580,0.06,179.19,179.17,0.04407095]
[1752836796795,0.77,179.19,179.17,0.04407095]
[1752836797373,6.29098002,179.18,179.17,0.04407095]
[1752836800282,5.58098002,179.18,179.17,0.04407095]
[1752836801377,5.64066856,179.19,179.17,0.04407095]
[1752836801598,5.64066856,179.19,179.18,0.68]
[1752836802096,5.64066856,179.19,179.18,8.31534497]
[1752836802097,0.06,179.19,179.18,8.31534497]
[1752836804105,0.06,179.19,179.18,7.63534497]
[1752836804801,0.06,179.19,179.17,35.95941592]
[1752836805520,0.06,179.19,179.17,36.63941592]
[1752836805700,0.71,179.18,179.17,0.04407095]
[1752836805903,6.29098002,179.18,179.17,0.04407095]
[1752836806096,13.92632499,179.18,179.17,0.04407095]
[1752836806296,6.29098002,179.18,179.17,0.04407095]
[1752836806501,13.92632499,179.18,179.17,0.04407095]
[1752836807398,13.92632499,179.18,179.17,0.07407095]
[1752836809691,13.92632499,179.18,179.17,1e-08]
[1752836817598,13.21632499,179.18,179.17,1e-08]
[1752836817906,13.91632499,179.18,179.17,1e-08]
[1752836820509,6.28098002,179.18,179.17,1e-08]
[1752836820814,13.91632499,179.18,179.17,1e-08]
[1752836825120,13.21632499,179.18,179.17,1e-08]
[1752836825503,5.58098002,179.18,179.17,0.69000001]